fUSD/lending_fUSD_20250622
["ID","MTS","AMOUNT","RATE_DAILY","PERIOD"]
[366897658,1750557056758,-490.0,0.00021917,2]
[366897659,1750557056771,-490.0,0.00021917,2]
[366897660,1750557056781,-490.62,0.00021917,2]
[366897661,1750557056792,-5302.47,0.00021917,2]
[366897662,1750557056802,-2172.67,0.00021917,2]
[366897663,1750557056814,-490.0,0.00021917,2]
[366897664,1750557056824,-2464.47,0.00021917,2]
[366897665,1750557056834,-8393.25,0.00021917,2]
[366897666,1750557056845,-490.0,0.00021917,2]
[366897667,1750557056855,-490.0,0.00021917,2]
[366897668,1750557056865,-1433.53,0.00021917,2]
[366897669,1750557056874,-490.0,0.00021917,2]
[366897670,1750557056884,-151.0,0.00021917,2]
[366897671,1750557056894,-151.0,0.00021917,2]
[366897672,1750557056904,-151.0,0.00021917,2]
[366897673,1750557056914,-151.0,0.00021917,2]
[366897674,1750557056923,-2698.17,0.00021917,2]
[366897675,1750557056933,-490.0,0.00021917,2]
[366897676,1750557056943,-2833.3,0.00021917,2]
[366897677,1750557056953,-703.53,0.00021917,2]
[366897678,1750557056964,-500.0,0.00021917,2]
[366897679,1750557056974,-598.17,0.00021917,2]
[366897680,1750557056984,-2247.58,0.00021917,2]
[366897681,1750557056995,-490.0,0.00021917,2]
[366897682,1750557057005,-4428.4,0.00021917,2]
[366897683,1750557057015,-500.0,0.00021917,2]
[366897684,1750557057026,-2429.63,0.00021917,2]
[366897685,1750557057036,-526.74855793,0.00021917,2]
[366897686,1750557057046,-490.0,0.00021917,2]
[366897687,1750557057056,-942.87,0.00021917,2]
[366897688,1750557057067,-270.721649,0.00021917,2]
[366897689,1750557057077,-3352.91,0.00021917,2]
[366897690,1750557057087,-3931.61,0.00021917,2]
[366897691,1750557057097,-500.0,0.00021917,2]
[366897692,1750557057107,-490.0,0.00021917,2]
[366897693,1750557057116,-491.16975258,0.00021917,2]
[366897694,1750557057126,-500.0,0.00021917,2]
[366897695,1750557057136,-500.0,0.00021917,2]
[366897696,1750557057146,-5194.46,0.00021917,2]
[366897697,1750557057156,-490.0,0.00021917,2]
[366897698,1750557057166,-500.0,0.00021917,2]
[366897699,1750557057176,-3306.17,0.00021917,2]
[366897700,1750557057186,-503.07203056,0.00021917,2]
[366897701,1750557057196,-153.392266,0.00021917,2]
[366897702,1750557057206,-3071.15,0.00021917,2]
[366897703,1750557057217,-3422.04,0.00021917,2]
[366897704,1750557057227,-1407.52,0.00021917,2]
[366897705,1750557057237,-151.633051,0.00021917,2]
[366897706,1750557057247,-2601.27,0.00021917,2]
[366897707,1750557057258,-490.0,0.00021917,2]
[366897708,1750557057268,-490.0,0.00021917,2]
[366897709,1750557057278,-490.0,0.00021917,2]
[366897710,1750557057288,-490.0,0.00021917,2]
[366897711,1750557057298,-1633.57,0.00021917,2]
[366897712,1750557057308,-990.94,0.00021917,2]
[366897713,1750557057318,-490.0,0.00021917,2]
[366897714,1750557057328,-674.65,0.00021917,2]
[366897715,1750557057338,-490.0,0.00021917,2]
[366897716,1750557057348,-2724.78,0.00021917,2]
[366897717,1750557057359,-644.96,0.00021917,2]
[366897718,1750557057369,-8313.83,0.00021917,2]
[366897719,1750557057380,-2012.86,0.00021917,2]
[366897720,1750557057390,-2210.69,0.00021917,2]
[366897721,1750557057400,-4999.02,0.00021917,2]
[366897722,1750557057410,-590.94,0.00021917,2]
[366897723,1750557057420,-3190.8,0.00021917,2]
[366897724,1750557057431,-490.0,0.00021917,2]
[366897725,1750557057442,-1192.42,0.00021917,2]
[366897726,1750557057452,-4161.43,0.00021917,2]
[366897727,1750557057461,-490.0,0.00021917,2]
[366897728,1750557057471,-2558.39,0.00021917,2]
[366897729,1750557057481,-490.0,0.00021917,2]
[366897730,1750557057492,-512.76,0.00021917,2]
[366897731,1750557057503,-965.39,0.00021917,2]
[366897732,1750557057512,-2879.49,0.00021917,2]
[366897733,1750557057523,-490.0,0.00021917,2]
[366897734,1750557057533,-490.0,0.00021917,2]
[366897735,1750557057544,-490.0,0.00021917,2]
[366897736,1750557057555,-490.0,0.00021917,2]
[366897737,1750557057565,-490.0,0.00021917,2]
[366897738,1750557057576,-832.78,0.00021917,2]
[366897739,1750557057586,-4894.65,0.00021917,2]
[366897740,1750557057596,-1069.15,0.00021917,2]
[366897741,1750557057606,-490.0,0.00021917,2]
[366897742,1750557057616,-20540.06,0.00021917,2]
[366897743,1750557057627,-490.0,0.00021917,2]
[366897744,1750557057637,-490.0,0.00021917,2]
[366897745,1750557057647,-5912.7,0.00021917,2]
[366897746,1750557057657,-1988.15,0.00021917,2]
[366897747,1750557057669,-490.0,0.00021917,2]
[366897748,1750557057679,-490.0,0.00021917,2]
[366897749,1750557057689,-3396.05,0.00021917,2]
[366897750,1750557057700,-1475.27,0.00021917,2]
[366897751,1750557057710,-490.0,0.00021917,2]
[366897752,1750557057721,-1223.14,0.00021917,2]
[366897753,1750557057731,-490.0,0.00021917,2]
[366897754,1750557057945,-490.0,0.00021917,2]
[366897755,1750557057974,-329.53026136,0.00021917,2]
[366897756,1750557057984,-490.0,0.00021917,2]
[366897757,1750557057995,-722.2,0.00021917,2]
[366897758,1750557058004,-490.0,0.00021917,2]
[366897759,1750557058013,-1673.02,0.00021917,2]
[366897760,1750557058022,-2979.24,0.00021917,2]
[366897761,1750557058031,-12439.01,0.00021917,2]
[366897762,1750557058040,-759.64,0.00021917,2]
[366897763,1750557058050,-4220.81,0.00021917,2]
[366897764,1750557058059,-495.88759374,0.00021917,2]
[366897765,1750557058069,-490.0,0.00021917,2]
[366897766,1750557058079,-490.0,0.00021917,2]
[366897767,1750557058089,-490.0,0.00021917,2]
[366897768,1750557058099,-1817.82,0.00021917,2]
[366897769,1750557058108,-490.0,0.00021917,2]
[366897770,1750557058118,-6154.42,0.00021917,2]
[366897771,1750557058128,-490.0,0.00021917,2]
[366897772,1750557058138,-490.0,0.00021917,2]
[366897773,1750557058147,-490.0,0.00021917,2]
[366897774,1750557058157,-338.35374739,0.00021917,2]
[366897775,1750557058167,-698.13,0.00021917,2]
[366897776,1750557058177,-490.0,0.00021917,2]
[366897777,1750557058187,-490.0,0.00021917,2]
[366897778,1750557058196,-490.0,0.00021917,2]
[366897779,1750557058206,-803.9,0.00021917,2]
[366897780,1750557058216,-1137.69,0.00021917,2]
[366897781,1750557058226,-284.97070251,0.00021917,2]
[366897782,1750557058235,-820.49,0.00021917,2]
[366897783,1750557058247,-615.80507041,0.00021917,2]
[366897784,1750557058257,-5008.03,0.00021917,2]
[366897785,1750557058268,-490.0,0.00021917,2]
[366897786,1750557058277,-490.0,0.00021917,2]
[366897787,1750557058288,-1457.29,0.00021917,2]
[366897788,1750557058297,-490.0,0.00021917,2]
[366897789,1750557058307,-4286.41,0.00021917,2]
[366897790,1750557058316,-1858.98,0.00021917,2]
[366897791,1750557058326,-2766.56,0.00021917,2]
[366897792,1750557058334,-2841.45,0.00021917,2]
[366897793,1750557058343,-490.0,0.00021917,2]
[366897794,1750557058353,-490.0,0.00021917,2]
[366897795,1750557058363,-491.61818048,0.00021917,2]
[366897796,1750557058373,-490.0,0.00021917,2]
[366897797,1750557058383,-11980.97,0.00021917,2]
[366897798,1750557058392,-490.0,0.00021917,2]
[366897799,1750557058401,-490.0,0.00021917,2]
[366897800,1750557058411,-490.0,0.00021917,2]
[366897801,1750557058421,-490.0,0.00021917,2]
[366897802,1750557058430,-455.64032913,0.00021917,2]
[366897803,1750557058440,-528.12,0.00021917,2]
[366897804,1750557058450,-528.85,0.00021917,2]
[366897805,1750557058460,-3216.35,0.00021917,2]
[366897806,1750557058470,-490.0,0.00021917,2]
[366897807,1750557058481,-3851.58,0.00021917,2]
[366897808,1750557058491,-490.0,0.00021917,2]
[366897809,1750557058501,-490.0,0.00021917,2]
[366897810,1750557058512,-1185.31,0.00021917,2]
[366897811,1750557058522,-2135.77,0.00021917,2]
[366897812,1750557058532,-490.0,0.00021917,2]
[366897813,1750557058542,-490.0,0.00021917,2]
[366897814,1750557058552,-490.0,0.00021917,2]
[366897815,1750557058562,-507.44166832,0.00021917,2]
[366897816,1750557058572,-5232.63,0.00021917,2]
[366897817,1750557058582,-2947.35,0.00021917,2]
[366897818,1750557058592,-9876.46,0.00021917,2]
[366897819,1750557058602,-490.0,0.00021917,2]
[366897820,1750557058613,-1476.36,0.00021917,2]
[366897821,1750557058623,-490.0,0.00021917,2]
[366897822,1750557058633,-490.0,0.00021917,2]
[366897823,1750557058643,-572.02224637,0.00021917,2]
[366897824,1750557058653,-490.0,0.00021917,2]
[366897825,1750557058664,-930.64,0.00021917,2]
[366897826,1750557058674,-490.0,0.00021917,2]
[366897827,1750557058685,-490.0,0.00021917,2]
[366897828,1750557058695,-2566.52,0.00021917,2]
[366897829,1750557058705,-2041.1,0.00021917,2]
[366897830,1750557058715,-490.0,0.00021917,2]
[366897831,1750557058725,-490.0,0.00021917,2]
[366897832,1750557058734,-3093.79,0.00021917,2]
[366897833,1750557058746,-490.0,0.00021917,2]
[366897834,1750557058757,-151.300273,0.00021917,2]
[366897835,1750557058771,-490.0,0.00021917,2]
[366897836,1750557058779,-490.0,0.00021917,2]
[366897837,1750557058790,-490.0,0.00021917,2]
[366897838,1750557058800,-1789.65,0.00021917,2]
[366897839,1750557058811,-1997.59,0.00021917,2]
[366897840,1750557058822,-490.0,0.00021917,2]
[366897841,1750557058832,-490.0,0.00021917,2]
[366897842,1750557058843,-5999.37,0.00021917,2]
[366897843,1750557058853,-490.0,0.00021917,2]
[366897844,1750557058863,-490.0,0.00021917,2]
[366897845,1750557058873,-8215.25,0.00021917,2]
[366897846,1750557058883,-490.0,0.00021917,2]
[366897847,1750557058892,-1623.46,0.00021917,2]
[366897848,1750557058902,-490.0,0.00021917,2]
[366897849,1750557058911,-490.0,0.00021917,2]
[366897850,1750557058921,-490.0,0.00021917,2]
[366897851,1750557058931,-2343.24,0.00021917,2]
[366897852,1750557058940,-490.0,0.00021917,2]
[366897853,1750557058951,-490.0,0.00021917,2]
[366897854,1750557058960,-1221.91,0.00021917,2]
[366897855,1750557058970,-490.0,0.00021917,2]
[366897856,1750557058980,-490.0,0.00021917,2]
[366897857,1750557058992,-490.0,0.00021917,2]
[366897858,1750557059002,-912.846595,0.00021917,2]
[366897859,1750557059011,-490.0,0.00021917,2]
[366897860,1750557059021,-490.0,0.00021917,2]
[366897861,1750557059031,-912.846595,0.00021917,2]
[366897862,1750557059042,-490.0,0.00021917,2]
[366897863,1750557059052,-997.99,0.00021917,2]
[366897864,1750557059062,-490.0,0.00021917,2]
[366897865,1750557059071,-912.846595,0.00021917,2]
[366897866,1750557059081,-912.846595,0.00021917,2]
[366897867,1750557059091,-151.0,0.00021917,2]
[366897868,1750557059101,-684.57,0.00021917,2]
[366897869,1750557059111,-151.0,0.00021917,2]
[366897870,1750557059121,-151.0,0.00021917,2]
[366897871,1750557059130,-490.0,0.00021917,2]
[366897872,1750557059140,-912.846595,0.00021917,2]
[366897873,1750557059150,-912.846595,0.00021917,2]
[366897874,1750557059162,-1413.4,0.00021917,2]
[366897875,1750557059171,-912.846595,0.00021917,2]
[366897876,1750557059182,-711.25,0.00021917,2]
[366897877,1750557059193,-4903.6,0.00021917,2]
[366897878,1750557059203,-912.846595,0.00021917,2]
[366897879,1750557059214,-490.0,0.00021917,2]
[366897880,1750557059223,-490.0,0.00021917,2]
[366897881,1750557059233,-5047.72,0.00021917,2]
[366897882,1750557059244,-1566.31,0.00021917,2]
[366897883,1750557059254,-460.200579,0.00021917,2]
[366897884,1750557059264,-727.47416,0.00021917,2]
[366897885,1750557059274,-549.12,0.00021917,2]
[366897886,1750557059284,-490.0,0.00021917,2]
[366897887,1750557059294,-490.0,0.00021917,2]
[366897888,1750557059304,-727.47416,0.00021917,2]
[366897889,1750557059313,-727.47416,0.00021917,2]
[366897890,1750557059324,-490.0,0.00021917,2]
[366897891,1750557059334,-490.0,0.00021917,2]
[366897892,1750557059343,-490.0,0.00021917,2]
[366897893,1750557059352,-727.47416,0.00021917,2]
[366897894,1750557059362,-17819.97,0.00021917,2]
[366897895,1750557059372,-491.40251416,0.00021917,2]
[366897896,1750557059381,-1222.34,0.00021917,2]
[366897897,1750557059391,-1957.13,0.00021917,2]
[366897898,1750557059402,-11139.02,0.00021917,2]
[366897899,1750557059411,-727.47416,0.00021917,2]
[366897900,1750557059421,-490.0,0.00021917,2]
[366897901,1750557059431,-2657.37,0.00021917,2]
[366897902,1750557059441,-490.0,0.00021917,2]
[366897903,1750557059450,-727.47416,0.00021917,2]
[366897904,1750557059460,-490.0,0.00021917,2]
[366897905,1750557059469,-727.47416,0.00021917,2]
[366897906,1750557059480,-727.47416,0.00021917,2]
[366897907,1750557059489,-490.0,0.00021917,2]
[366897908,1750557059499,-490.0,0.00021917,2]
[366897909,1750557059509,-760.29,0.00021917,2]
[366897910,1750557059521,-760.29,0.00021917,2]
[366897911,1750557059531,-594.3,0.00021917,2]
[366897912,1750557059542,-5100.3,0.00021917,2]
[366897913,1750557059553,-1826.21,0.00021917,2]
[366897914,1750557059563,-567.77861507,0.00021917,2]
[366897915,1750557059573,-760.29,0.00021917,2]
[366897916,1750557059584,-602.72897449,0.00021917,2]
[366897917,1750557059594,-760.29,0.00021917,2]
[366897918,1750557059605,-490.0,0.00021917,2]
[366897919,1750557059615,-760.29,0.00021917,2]
[366897920,1750557059627,-2533.35,0.00021917,2]
[366897921,1750557059637,-1022.03,0.00021917,2]
[366897922,1750557059647,-760.29,0.00021917,2]
[366897923,1750557059657,-315.65450104,0.00021917,2]
[366897924,1750557059669,-760.29,0.00021917,2]
[366897925,1750557059679,-760.29,0.00021917,2]
[366897926,1750557059689,-151.0,0.00021917,2]
[366897927,1750557059699,-490.0,0.00021917,2]
[366897928,1750557059709,-760.29,0.00021917,2]
[366897929,1750557059718,-151.0,0.00021917,2]
[366897930,1750557059728,-760.29,0.00021917,2]
[366897931,1750557059739,-151.0,0.00021917,2]
[366897932,1750557059750,-760.29,0.00021917,2]
[366897933,1750557059760,-151.0,0.00021917,2]
[366897934,1750557059774,-231.272661,0.00021917,2]
[366897935,1750557059784,-760.29,0.00021917,2]
[366897936,1750557059793,-760.29,0.00021917,2]
[366897937,1750557059803,-151.0,0.00021917,2]
[366897938,1750557059813,-490.0,0.00021917,2]
[366897939,1750557059823,-760.29,0.00021917,2]
[366897940,1750557059832,-13039.18,0.00021917,2]
[366897941,1750557059844,-151.0,0.00021917,2]
[366897942,1750557059854,-151.0,0.00021917,2]
[366897943,1750557059863,-16972.73,0.00021917,2]
[366897944,1750557059873,-1471.2,0.00021917,2]
[366897945,1750557059882,-708.39,0.00021917,2]
[366897946,1750557059891,-544.14,0.00021917,2]
[366897947,1750557059901,-627.07,0.00021917,2]
[366897948,1750557059910,-490.0,0.00021917,2]
[366897949,1750557059920,-151.0,0.00021917,2]
[366897950,1750557059929,-490.0,0.00021917,2]
[366897951,1750557059939,-490.0,0.00021917,2]
[366897952,1750557059948,-151.0,0.00021917,2]
[366897953,1750557059958,-151.0,0.00021917,2]
[366897954,1750557059967,-151.0,0.00021917,2]
[366897955,1750557059977,-529.24138181,0.00021917,2]
[366897956,1750557059986,-490.0,0.00021917,2]
[366897957,1750557059997,-1407.98,0.00021917,2]
[366897958,1750557060008,-4729.3,0.00021917,2]
[366897959,1750557060018,-1375.16,0.00021917,2]
[366897960,1750557060028,-490.0,0.00021917,2]
[366897961,1750557060038,-500.0,0.00021917,2]
[366897962,1750557060048,-500.0,0.00021917,2]
[366897963,1750557060058,-500.0,0.00021917,2]
[366897964,1750557060068,-500.0,0.00021917,2]
[366897965,1750557060078,-13293.25,0.00021917,2]
[366897966,1750557060088,-500.0,0.00021917,2]
[366897967,1750557060097,-1722.57,0.00021917,2]
[366897968,1750557060107,-500.0,0.00021917,2]
[366897969,1750557060117,-490.0,0.00021917,2]
[366897970,1750557060127,-500.0,0.00021917,2]
[366897971,1750557060136,-490.0,0.00021917,2]
[366897972,1750557060146,-500.0,0.00021917,2]
[366897973,1750557060156,-3678.01,0.00021917,2]
[366897974,1750557060166,-3704.99,0.00021917,2]
[366897975,1750557060175,-500.0,0.00021917,2]
[366897976,1750557060185,-500.0,0.00021917,2]
[366897977,1750557060194,-500.0,0.00021917,2]
[366897978,1750557060203,-2870.12,0.00021917,2]
[366897979,1750557060212,-490.0,0.00021917,2]
[366897980,1750557060222,-490.0,0.00021917,2]
[366897981,1750557060231,-1157.35,0.00021917,2]
[366897982,1750557060241,-490.0,0.00021917,2]
[366897983,1750557060250,-651.59,0.00021917,2]
[366897984,1750557060260,-651.59,0.00021917,2]
[366897985,1750557060269,-651.59,0.00021917,2]
[366897986,1750557060279,-651.59,0.00021917,2]
[366897987,1750557060288,-490.0,0.00021917,2]
[366897988,1750557060298,-651.59,0.00021917,2]
[366897989,1750557060307,-651.59,0.00021917,2]
[366897990,1750557060317,-490.0,0.00021917,2]
[366897991,1750557060326,-651.59,0.00021917,2]
[366897992,1750557060336,-651.59,0.00021917,2]
[366897993,1750557060346,-651.59,0.00021917,2]
[366897994,1750557060356,-651.59,0.00021917,2]
[366897995,1750557060365,-1009.89,0.00021917,2]
[366897996,1750557060375,-490.0,0.00021917,2]
[366897997,1750557060384,-1739.01,0.00021917,2]
[366897998,1750557060394,-490.0,0.00021917,2]
[366897999,1750557060404,-2809.04,0.00021917,2]
[366898000,1750557060414,-1203.4,0.00021917,2]
[366898001,1750557060423,-490.0,0.00021917,2]
[366898002,1750557060433,-490.0,0.00021917,2]
[366898003,1750557060443,-621.94,0.00021917,2]
[366898004,1750557060452,-490.0,0.00021917,2]
[366898005,1750557060462,-490.0,0.00021917,2]
[366898006,1750557060472,-490.0,0.00021917,2]
[366898007,1750557060481,-2693.6,0.00021917,2]
[366898008,1750557060492,-490.0,0.00021917,2]
[366898009,1750557060502,-490.0,0.00021917,2]
[366898010,1750557060511,-490.0,0.00021917,2]
[366898011,1750557060520,-1763.09,0.00021917,2]
[366898012,1750557060530,-490.0,0.00021917,2]
[366898013,1750557060539,-490.0,0.00021917,2]
[366898014,1750557060550,-1763.09,0.00021917,2]
[366898015,1750557060560,-1763.09,0.00021917,2]
[366898016,1750557060570,-1763.09,0.00021917,2]
[366898017,1750557060579,-1763.09,0.00021917,2]
[366898018,1750557060588,-1763.09,0.00021917,2]
[366898019,1750557060598,-1763.09,0.00021917,2]
[366898020,1750557060608,-1763.09,0.00021917,2]
[366898021,1750557060618,-1953.88,0.00021917,2]
[366898022,1750557060627,-1763.09,0.00021917,2]
[366898023,1750557060637,-490.0,0.00021917,2]
[366898024,1750557060646,-491.80909015,0.00021917,2]
[366898025,1750557060656,-1763.09,0.00021917,2]
[366898026,1750557060666,-490.0,0.00021917,2]
[366898027,1750557060675,-490.0,0.00021917,2]
[366898028,1750557060685,-1763.09,0.00021917,2]
[366898029,1750557060694,-2261.42,0.00021917,2]
[366898030,1750557060705,-1763.09,0.00021917,2]
[366898031,1750557060715,-490.0,0.00021917,2]
[366898032,1750557060725,-9836.66,0.00021917,2]
[366898033,1750557060734,-1763.09,0.00021917,2]
[366898034,1750557060745,-1763.09,0.00021917,2]
[366898035,1750557060755,-490.0,0.00021917,2]
[366898036,1750557060767,-490.0,0.00021917,2]
[366898037,1750557060778,-1375.86,0.00021917,2]
[366898038,1750557060787,-5397.06,0.00021917,2]
[366898039,1750557060797,-490.0,0.00021917,2]
[366898040,1750557060807,-490.0,0.00021917,2]
[366898041,1750557060816,-5108.25,0.00021917,2]
[366898042,1750557060826,-490.0,0.00021917,2]
[366898043,1750557060835,-500.0,0.00021917,2]
[366898044,1750557060846,-500.0,0.00021917,2]
[366898045,1750557060855,-500.0,0.00021917,2]
[366898046,1750557060864,-500.0,0.00021917,2]
[366898047,1750557060874,-1693.09,0.00021917,2]
[366898048,1750557060884,-500.0,0.00021917,2]
[366898049,1750557060895,-490.0,0.00021917,2]
[366898050,1750557060904,-500.0,0.00021917,2]
[366898051,1750557060915,-500.0,0.00021917,2]
[366898052,1750557060926,-490.0,0.00021917,2]
[366898053,1750557060936,-490.0,0.00021917,2]
[366898054,1750557060945,-500.0,0.00021917,2]
[366898055,1750557060955,-490.0,0.00021917,2]
[366898056,1750557060964,-500.0,0.00021917,2]
[366898057,1750557060975,-500.0,0.00021917,2]
[366898058,1750557060984,-490.0,0.00021917,2]
[366898059,1750557060994,-490.0,0.00021917,2]
[366898060,1750557061004,-490.0,0.00021917,2]
[366898061,1750557061014,-2761.28,0.00021917,2]
[366898062,1750557061023,-500.0,0.00021917,2]
[366898063,1750557061032,-831.41,0.00021917,2]
[366898064,1750557061042,-150.0,0.00021917,2]
[366898065,1750557061052,-541.39,0.00021917,2]
[366898066,1750557061062,-11636.9,0.00021917,2]
[366898067,1750557061071,-785.15,0.00021917,2]
[366898068,1750557061081,-490.0,0.00021917,2]
[366898069,1750557061091,-490.0,0.00021917,2]
[366898070,1750557061101,-1530.34,0.00021917,2]
[366898071,1750557061112,-1950.2,0.00021917,2]
[366898072,1750557061122,-1202.5,0.00021917,2]
[366898073,1750557061132,-490.0,0.00021917,2]
[366898074,1750557061142,-490.0,0.00021917,2]
[366898075,1750557061152,-490.0,0.00021917,2]
[366898076,1750557061161,-490.0,0.00021917,2]
[366898077,1750557061171,-490.0,0.00021917,2]
[366898078,1750557061182,-490.0,0.00021917,2]
[366898079,1750557061191,-281.934372,0.00021917,2]
[366898080,1750557061201,-1814.52,0.00021917,2]
[366898081,1750557061210,-652.37,0.00021917,2]
[366898082,1750557061220,-490.0,0.00021917,2]
[366898083,1750557061230,-151.882356,0.00021917,2]
[366898084,1750557061240,-490.0,0.00021917,2]
[366898085,1750557061252,-1114.31,0.00021917,2]
[366898086,1750557061261,-309.24662294,0.00021917,2]
[366898087,1750557061271,-490.0,0.00021917,2]
[366898088,1750557061280,-1049.86,0.00021917,2]
[366898089,1750557061290,-1852.73,0.00021917,2]
[366898090,1750557061300,-4536.81,0.00021917,2]
[366898091,1750557061310,-490.0,0.00021917,2]
[366898092,1750557061527,-337.7212436,0.00021917,2]
[366898093,1750557061537,-490.0,0.00021917,2]
[366898094,1750557061547,-490.0,0.00021917,2]
[366898095,1750557061557,-490.0,0.00021917,2]
[366898096,1750557061567,-880.65,0.00021917,2]
[366898097,1750557061578,-490.0,0.00021917,2]
[366898098,1750557061588,-547.47,0.00021917,2]
[366898099,1750557061598,-490.0,0.00021917,2]
[366898100,1750557061608,-490.0,0.00021917,2]
[366898101,1750557061619,-151.0,0.00021917,2]
[366898102,1750557061629,-151.0,0.00021917,2]
[366898103,1750557061640,-151.0,0.00021917,2]
[366898104,1750557061650,-151.0,0.00021917,2]
[366898105,1750557061661,-1983.94,0.00021917,2]
[366898106,1750557061670,-676.24,0.00021917,2]
[366898107,1750557061680,-481.18521858,0.00021917,2]
[366898108,1750557061689,-676.24,0.00021917,2]
[366898109,1750557061699,-1361.19,0.00021917,2]
[366898110,1750557061709,-676.24,0.00021917,2]
[366898111,1750557061718,-8675.43,0.00021917,2]
[366898112,1750557061728,-676.24,0.00021917,2]
[366898113,1750557061737,-8675.43,0.00021917,2]
[366898114,1750557061748,-676.24,0.00021917,2]
[366898115,1750557061758,-490.0,0.00021917,2]
[366898116,1750557061771,-8675.43,0.00021917,2]
[366898117,1750557061781,-490.0,0.00021917,2]
[366898118,1750557061791,-490.0,0.00021917,2]
[366898119,1750557061800,-8675.43,0.00021917,2]
[366898120,1750557061811,-676.24,0.00021917,2]
[366898121,1750557061820,-490.0,0.00021917,2]
[366898122,1750557061830,-8675.43,0.00021917,2]
[366898123,1750557061844,-676.24,0.00021917,2]
[366898124,1750557061856,-2245.54,0.00021917,2]
[366898125,1750557061865,-8675.43,0.00021917,2]
[366898126,1750557061875,-676.24,0.00021917,2]
[366898127,1750557061884,-8675.43,0.00021917,2]
[366898128,1750557061894,-676.24,0.00021917,2]
[366898129,1750557061904,-8675.43,0.00021917,2]
[366898130,1750557061915,-1625.72,0.00021917,2]
[366898131,1750557061925,-8675.43,0.00021917,2]
[366898132,1750557061935,-27523.55,0.00021917,2]
[366898133,1750557061946,-4868.33,0.00021917,2]
[366898134,1750557061957,-490.0,0.00021917,2]
[366898135,1750557061966,-793.36,0.00021917,2]
[366898136,1750557061976,-490.0,0.00021917,2]
[366898137,1750557061987,-516.11981407,0.00021917,2]
[366898138,1750557061998,-870.2,0.00021917,2]
[366898139,1750557062008,-490.0,0.00021917,2]
[366898140,1750557062018,-3996.74,0.00021917,2]
[366898141,1750557062028,-776.06,0.00021918,2]
[366898142,1750557062037,-341.57,0.00021918,2]
[366898143,1750557062048,-151.0,0.00021918,2]
[366898144,1750557062058,-151.0,0.00021918,2]
[366898145,1750557062068,-152.354854,0.00021918,2]
[366898146,1750557062078,-1000.0,0.00021918,4]
[366898147,1750557062088,-1000.0,0.00021918,4]
[366898148,1750557062098,-1000.0,0.00021918,4]
[366898149,1750557062107,-1000.0,0.00021918,4]
[366898150,1750557062117,-1000.0,0.00021918,4]
[366898151,1750557062126,-1000.0,0.00021918,4]
[366898152,1750557062135,-1000.0,0.00021918,4]
[366898153,1750557062144,-1000.0,0.00021918,4]
[366898154,1750557062154,-1000.0,0.00021918,4]
[366898155,1750557062163,-1000.0,0.00021918,4]
[366898156,1750557062173,-1000.0,0.00021918,4]
[366898157,1750557062182,-1000.0,0.00021918,4]